[Event "FIDE World Junior U20-ch Girls 2025"]
[Site "Petrovac"]
[Date "2025.03.02"]
[Round "6.22"]
[White "Sneha Halder"]
[Black "Kanyamarala, Trisha"]
[Result "0-1"]
[Annotator "ChessBase"]
[ECO "D04"]
[WhiteElo "2065"]
[BlackElo "2178"]
[PlyCount "76"]
[EventDate "2025.02.23"]
[EventType "swiss"]
[EventCountry "MNE"]
[SourceTitle "playchess.com"]
[Source "ChessBase"]
[SourceQuality "1"]
[TimeControl "40/5400+30:1800+30"]

1. Nf3 {[%emt 0:07:04]} d5 {[%emt 0:00:15]} 2. d4 {[%emt 0:00:09]} Nf6 {[%emt 0:00:14]} 3. e3 {[%emt 0:00:06]} c5 {[%emt 0:00:20]} 4. b3 {[%emt 0:00:06]} cxd4 {[%emt 0:03:06]} 5. exd4 {[%emt 0:04:51]} Bg4 {[%emt 0:00:28]} 6. Be2 {[%emt 0:00:57]} Nc6 {[%emt 0:02:30]} 7. Nbd2 {[%emt 0:02:30]} Ne4 {[%emt 0:04:44]} 8. Bb2 {[%emt 0:00:35]} Qa5 {[%emt 0:02:13]} 9. O-O {[%emt 0:00:30]} Nc3 {[%emt 0:02:59]} 10. Qe1 {[%emt 0:00:51]} Nxe2+ {[%emt 0:02:59]} 11. Qxe2 {[%emt 0:00:05]} e6 {[%emt 0:00:47]} 12. h3 {[%emt 0:04:37]} Bh5 {[%emt 0:02:27]} 13. c4 {[%emt 0:03:37]} Be7 {[%emt 0:03:38]} 14. a3 {[%emt 0:06:49]} dxc4 {[%emt 0:03:32]} 15. bxc4 {[%emt 0:03:27]} O-O {[%emt 0:02:00]} 16. Qe3 {[%emt 0:06:11]} Rfd8 {[%emt 0:03:31]} 17. Nb3 {[%emt 0:09:05]} Qb6 {[%emt 0:05:53]} 18. Rad1 {[%emt 0:10:47]} Bf6 {[%emt 0:22:59]} 19. g4 {[%emt 0:08:50]} Bg6 {[%emt 0:00:28]} 20. Rd2 {[%emt 0:00:16]} h6 {[%emt 0:07:58]} 21. h4 {[%emt 0:08:01]} Ne7 {[%emt 0:07:43]} 22. Nc5 {[%emt 0:05:58]} h5 {[%emt 0:03:33]} 23. Ne5 {[%emt 0:08:16]} hxg4 {[%emt 0:04:48]} 24. Ned7 {[%emt 0:01:34]} Qc7 {[%emt 0:01:03]} 25. Nxf6+ {[%emt 0:02:34]} gxf6 {[%emt 0:00:02]} 26. h5 {[%emt 0:00:57]} Nf5 {[%emt 0:02:02]} 27. Qe4 {[%emt 0:02:45]} Bh7 {[%emt 0:09:12]} 28. Qxg4+ {[%emt 0:01:19]} Kh8 {[%emt 0:00:05]} 29. Qf3 {[%emt 0:00:01]} Qe7 {[%emt 0:02:37]} 30. Ne4 {[%emt 0:00:22]} Rg8+ {[%emt 0:00:43]} 31. Kh1 {[%emt 0:00:53]} Rg7 {[%emt 0:00:39]} 32. d5 {[%emt 0:01:07]} e5 {[%emt 0:00:17]} 33. d6 {[%emt 0:00:02]} Qe6 {[%emt 0:00:14]} 34. d7 {[%emt 0:00:08]} Rd8 {[%emt 0:00:13]} 35. Rg1 {[%emt 0:01:47]} Nh4 {[%emt 0:00:27]} 36. Rxg7 {[%emt 0:00:49]} Nxf3 {[%emt 0:00:11]} 37. Rg3 {[%emt 0:00:30]} Bxe4 {[%emt 0:00:53]} 38. Re2 {[%emt 0:00:20]} Qxc4 {[%emt 0:00:31]} 0-1

[Event "FIDE World Junior U20-ch Girls 2025"]
[Site "Petrovac"]
[Date "2025.03.02"]
[Round "6.23"]
[White "Wang, Qinxuanyi"]
[Black "Lindstad, Livia"]
[Result "1-0"]
[Annotator "ChessBase"]
[ECO "E12"]
[WhiteElo "2165"]
[BlackElo "2017"]
[PlyCount "47"]
[EventDate "2025.02.23"]
[EventType "swiss"]
[EventCountry "MNE"]
[SourceTitle "playchess.com"]
[Source "ChessBase"]
[SourceQuality "1"]
[TimeControl "40/5400+30:1800+30"]

1. d4 {[%emt 0:00:03]} Nf6 {[%emt 0:00:18]} 2. c4 {[%emt 0:00:08]} e6 {[%emt 0:00:22]} 3. Nf3 {[%emt 0:00:08]} b6 {[%emt 0:00:40]} 4. a3 {[%emt 0:00:08]} Bb7 {[%emt 0:00:22]} 5. Nc3 {[%emt 0:00:12]} d5 {[%emt 0:01:03]} 6. cxd5 {[%emt 0:00:09]} Nxd5 {[%emt 0:00:10]} 7. Qc2 {[%emt 0:00:07]} Nxc3 {[%emt 0:00:49]} 8. bxc3 {[%emt 0:00:05]} Nd7 {[%emt 0:00:25]} 9. e4 {[%emt 0:00:17]} c5 {[%emt 0:00:43]} 10. Bf4 {[%emt 0:00:10]} Qc8 {[%emt 0:01:20]} 11. d5 {[%emt 0:04:04]} exd5 {[%emt 0:07:50]} 12. exd5 {[%emt 0:00:08]} Bxd5 {[%emt 0:13:02]} 13. Bb5 {[%emt 0:09:17]} a6 {[%emt 0:10:34]} 14. Bxd7+ {[%emt 0:01:42]} Qxd7 {[%emt 0:00:35]} 15. O-O-O {[%emt 0:00:20]} O-O-O {[%emt 0:06:28]} 16. Ne5 {[%emt 0:18:52]} Qe6 {[%emt 0:10:58]} 17. Qa4 {[%emt 0:12:46]} b5 {[%emt 0:03:21]} 18. Qa5 {[%emt 0:00:55]} Be7 {[%emt 0:14:30]} 19. Nc4 {[%emt 0:03:53]} Kd7 {[%emt 0:04:24]} 20. Rhe1 {[%emt 0:02:33]} bxc4 {[%emt 0:06:09]} 21. Rxd5+ {[%emt 0:00:40]} Ke8 {[%emt 0:00:52]} 22. Rxd8+ {[%emt 0:00:23]} Bxd8 {[%emt 0:00:15]} 23. Rxe6+ {[%emt 0:00:04]} fxe6 {[%emt 0:01:02]} 24. Qxc5 {[%emt 0:00:11]} 1-0

[Event "FIDE World Junior U20-ch Girls 2025"]
[Site "Petrovac"]
[Date "2025.03.02"]
[Round "6.24"]
[White "Gasparyan, Milena"]
[Black "Yildiz, Elif Zeren"]
[Result "1/2-1/2"]
[Annotator "ChessBase"]
[ECO "C67"]
[WhiteElo "1986"]
[BlackElo "2160"]
[PlyCount "98"]
[EventDate "2025.02.23"]
[EventType "swiss"]
[EventCountry "MNE"]
[SourceTitle "playchess.com"]
[Source "ChessBase"]
[SourceQuality "1"]
[TimeControl "40/5400+30:1800+30"]

1. e4 {[%emt 0:00:10]} e5 {[%emt 0:00:14]} 2. Nf3 {[%emt 0:00:09]} Nc6 {[%emt 0:00:04]} 3. Bb5 {[%emt 0:00:04]} Nf6 {[%emt 0:00:06]} 4. O-O {[%emt 0:00:21]} Nxe4 {[%emt 0:00:06]} 5. Re1 {[%emt 0:00:22]} Nd6 {[%emt 0:00:05]} 6. Nxe5 {[%emt 0:00:17]} Be7 {[%emt 0:00:04]} 7. Bf1 {[%emt 0:00:39]} Nxe5 {[%emt 0:00:04]} 8. Rxe5 {[%emt 0:00:04]} O-O {[%emt 0:00:05]} 9. d4 {[%emt 0:00:07]} Bf6 {[%emt 0:00:04]} 10. Re1 {[%emt 0:00:23]} Nf5 {[%emt 0:00:04]} 11. c3 {[%emt 0:00:45]} d5 {[%emt 0:00:43]} 12. Bf4 {[%emt 0:00:45]} c6 {[%emt 0:04:25]} 13. Nd2 {[%emt 0:00:37]} Nh4 {[%emt 0:07:28]} 14. Bd3 {[%emt 0:03:08]} Ng6 {[%emt 0:02:29]} 15. Bg3 {[%emt 0:00:31]} Bg5 {[%emt 0:07:42]} 16. Qc2 {[%emt 0:12:25]} f5 {[%emt 0:10:47]} 17. Be5 {[%emt 0:09:07]} Nxe5 {[%emt 0:08:23]} 18. dxe5 {[%emt 0:00:16]} Be6 {[%emt 0:03:06]} 19. Nb3 {[%emt 0:07:24]} Qd7 {[%emt 0:07:39]} 20. c4 {[%emt 0:09:13]} Be7 {[%emt 0:03:50]} 21. Nd4 {[%emt 0:02:08]} Rac8 {[%emt 0:01:43]} 22. Rad1 {[%emt 0:02:16]} Bc5 {[%emt 0:03:55]} 23. Nxe6 {[%emt 0:02:38]} Qxe6 {[%emt 0:00:02]} 24. a3 {[%emt 0:03:37]} Kh8 {[%emt 0:03:34]} 25. b4 {[%emt 0:02:53]} Bb6 {[%emt 0:00:06]} 26. c5 {[%emt 0:00:28]} Bd8 {[%emt 0:00:52]} 27. f4 {[%emt 0:02:07]} g6 {[%emt 0:02:08]} 28. Kh1 {[%emt 0:02:33]} Rc7 {[%emt 0:01:51]} 29. Re3 {[%emt 0:07:34]} Rcf7 {[%emt 0:06:37]} 30. Rh3 {[%emt 0:05:34]} Kg8 {[%emt 0:02:27]} 31. Rf1 {[%emt 0:00:49]} Be7 {[%emt 0:03:49]} 32. Qf2 {[%emt 0:04:29]} h5 {[%emt 0:02:35]} 33. Rf3 {[%emt 0:00:22]} Rh7 {[%emt 0:01:09]} 34. a4 {[%emt 0:02:25]} Rc8 {[%emt 0:01:18]} 35. Rc1 {[%emt 0:00:55]} Bf8 {[%emt 0:00:29]} 36. Qc2 {[%emt 0:04:34]} Rf7 {[%emt 0:07:24]} 37. Qf2 {[%emt 0:03:48]} Rfc7 {[%emt 0:02:25]} 38. Be2 {[%emt 0:02:48]} a6 {[%emt 0:04:40]} 39. Rfc3 {[%emt 0:04:27]} Be7 {[%emt 0:01:29]} 40. h4 {[%emt 0:05:20]} Kh7 {[%emt 0:02:22]} 41. g3 {[%emt 0:30:50]} Qd7 {[%emt 0:02:39]} 42. Qd4 {[%emt 0:00:00]} Ra8 {[%emt 0:04:34]} 43. Kg2 {[%emt 0:00:00]} Rcc8 {[%emt 0:02:33]} 44. Kh3 {[%emt 0:00:00]} Qd8 {[%emt 0:07:03]} 45. Rd1 {[%emt 0:00:00]} Qf8 {[%emt 0:01:15]} 46. Rdc1 {[%emt 0:00:00]} Kh6 {[%emt 0:03:28]} 47. Bd3 {[%emt 0:00:00]} Qd8 {[%emt 0:03:54]} 48. Bf1 {[%emt 0:00:00]} Qf8 {[%emt 0:00:52]} 49. Bd3 {[%emt 0:00:00]} Qd8 {[%emt 0:00:18]} 1/2-1/2

[Event "FIDE World Junior U20-ch Girls 2025"]
[Site "Petrovac"]
[Date "2025.03.02"]
[Round "6.25"]
[White "Valcu, Lavinia"]
[Black "Imomkuzieva, Nilufarkhon"]
[Result "0-1"]
[Annotator "NA"]
[ECO "D10"]
[WhiteElo "2137"]
[BlackElo "1983"]
[PlyCount "82"]
[EventDate "2025.02.23"]
[EventType "swiss"]
[EventCountry "MNE"]
[SourceTitle "playchess.com"]
[Source "ChessBase"]
[SourceQuality "1"]
[TimeControl "40/5400+30:1800+30"]

1. d4 {[%emt 0:00:25]} c6 {[%emt 0:00:54]} 2. c4 {[%emt 0:00:56]} d5 {[%emt 0:00:15]} 3. Nc3 {[%emt 0:00:17]} Nf6 {[%emt 0:00:26]} 4. cxd5 {[%emt 0:01:00]} cxd5 {[%emt 0:01:02]} 5. f3 {[%emt 0:01:08]} Nc6 {[%emt 0:03:43]} 6. e4 {[%emt 0:00:06]} g6 {[%emt 0:07:43]} 7. e5 {[%emt 0:06:00]} Ng8 {[%emt 0:01:22]} 8. Be3 {[%emt 0:02:00]} Bg7 {[%emt 0:00:36]} 9. Qb3 {[%emt 0:13:37]} e6 {[%emt 0:04:42]} 10. Be2 {[%emt 0:06:23]} Nge7 {[%emt 0:01:34]} 11. g4 {[%emt 0:04:14]} O-O {[%emt 0:02:41]} 12. f4 {[%emt 0:05:38]} f6 {[%emt 0:04:50]} 13. Nf3 {[%emt 0:01:01]} fxe5 {[%emt 0:00:08]} 14. fxe5 {[%emt 0:05:58]} Na5 {[%emt 0:02:24]} 15. Qd1 {[%emt 0:09:20]} Nc4 {[%emt 0:00:37]} 16. Bc1 {[%emt 0:02:04]} Bd7 {[%emt 0:16:21]} 17. b3 {[%emt 0:02:10]} Qa5 {[%emt 0:04:19]} 18. Qd3 {[%emt 0:01:50]} Na3 {[%emt 0:04:02]} 19. O-O {[%emt 0:13:00]} a6 {[%emt 0:02:30]} 20. Bd2 {[%emt 0:07:16]} Qb6 {[%emt 0:01:06]} 21. Kh1 {[%emt 0:02:40]} Rac8 {[%emt 0:10:52]} 22. Ng5 {[%emt 0:00:26]} Nb5 {[%emt 0:02:41]} 23. Nxb5 {[%emt 0:01:20]} Bxb5 {[%emt 0:00:19]} 24. Qh3 {[%emt 0:01:05]} h6 {[%emt 0:08:34]} 25. Bxb5 {[%emt 0:00:07]} hxg5 {[%emt 0:05:33]} 26. Bd3 {[%emt 0:02:40]} Qxd4 {[%emt 0:01:25]} 27. Bxg5 {[%emt 0:00:36]} Rxf1+ {[%emt 0:01:27]} 28. Rxf1 {[%emt 0:00:27]} Rc3 {[%emt 0:01:41]} 29. Bxe7 {[%emt 0:05:14]} Rxd3 {[%emt 0:00:34]} 30. Qg2 {[%emt 0:01:07]} Rd2 {[%emt 0:01:59]} 31. Qh3 {[%emt 0:02:25]} Qxe5 {[%emt 0:00:44]} 32. g5 {[%emt 0:00:21]} Qe4+ {[%emt 0:00:45]} 33. Qf3 {[%emt 0:00:08]} Qxf3+ {[%emt 0:00:23]} 34. Rxf3 {[%emt 0:00:04]} Rxa2 {[%emt 0:00:27]} 35. Bf6 {[%emt 0:00:31]} d4 {[%emt 0:00:48]} 36. h4 {[%emt 0:00:17]} e5 {[%emt 0:00:10]} 37. Kg1 {[%emt 0:00:39]} e4 {[%emt 0:00:23]} 38. Rf4 {[%emt 0:00:05]} d3 {[%emt 0:01:13]} 39. Rxe4 {[%emt 0:00:43]} Bxf6 {[%emt 0:00:09]} 40. gxf6 {[%emt 0:01:07]} d2 {[%emt 0:00:03]} 41. Rd4 {[%emt 0:30:58]} Ra1+ {[%emt 0:30:04]} 0-1

[Event "FIDE World Junior U20-ch Girls 2025"]
[Site "Petrovac"]
[Date "2025.03.02"]
[Round "6.26"]
[White "Ter-Avetisjana, Agnesa Stepania"]
[Black "Nguyen, Binh Vy"]
[Result "1/2-1/2"]
[Annotator "NA"]
[ECO "B40"]
[WhiteElo "2133"]
[BlackElo "1926"]
[PlyCount "93"]
[EventDate "2025.02.23"]
[EventType "swiss"]
[EventCountry "MNE"]
[SourceTitle "playchess.com"]
[Source "ChessBase"]
[SourceQuality "1"]
[TimeControl "40/5400+30:1800+30"]

1. e4 {[%emt 0:01:27]} c5 {[%emt 0:00:07]} 2. Nf3 {[%emt 0:00:04]} e6 {[%emt 0:00:05]} 3. b3 {[%emt 0:00:10]} Nc6 {[%emt 0:01:47]} 4. Bb2 {[%emt 0:00:08]} d5 {[%emt 0:01:24]} 5. exd5 {[%emt 0:00:50]} exd5 {[%emt 0:00:06]} 6. d4 {[%emt 0:02:13]} Nf6 {[%emt 0:01:12]} 7. Be2 {[%emt 0:02:52]} Be7 {[%emt 0:00:22]} 8. O-O {[%emt 0:01:40]} O-O {[%emt 0:00:32]} 9. dxc5 {[%emt 0:04:33]} Bxc5 {[%emt 0:04:00]} 10. a3 {[%emt 0:00:12]} Bg4 {[%emt 0:03:24]} 11. h3 {[%emt 0:02:07]} Bh5 {[%emt 0:01:02]} 12. b4 {[%emt 0:00:49]} Be7 {[%emt 0:00:56]} 13. Nbd2 {[%emt 0:02:23]} Rc8 {[%emt 0:03:29]} 14. Nb3 {[%emt 0:02:58]} Bg6 {[%emt 0:14:23]} 15. Rc1 {[%emt 0:03:05]} a6 {[%emt 0:05:05]} 16. c4 {[%emt 0:02:48]} dxc4 {[%emt 0:00:28]} 17. Bxc4 {[%emt 0:00:21]} Qxd1 {[%emt 0:01:49]} 18. Rfxd1 {[%emt 0:00:08]} Rfd8 {[%emt 0:00:25]} 19. Re1 {[%emt 0:07:10]} Bf8 {[%emt 0:08:06]} 20. Bf1 {[%emt 0:10:16]} Re8 {[%emt 0:09:46]} 21. Rxe8 {[%emt 0:05:35]} Rxe8 {[%emt 0:02:59]} 22. Nc5 {[%emt 0:02:15]} Bxc5 {[%emt 0:01:54]} 23. Rxc5 {[%emt 0:00:12]} Ne4 {[%emt 0:04:12]} 24. Rc1 {[%emt 0:02:00]} Nd8 {[%emt 0:04:25]} 25. Nh4 {[%emt 0:02:26]} Ne6 {[%emt 0:02:27]} 26. Nxg6 {[%emt 0:04:22]} hxg6 {[%emt 0:00:06]} 27. Re1 {[%emt 0:01:28]} Nd6 {[%emt 0:01:42]} 28. Rd1 {[%emt 0:05:15]} Rd8 {[%emt 0:01:20]} 29. g3 {[%emt 0:01:12]} Kf8 {[%emt 0:02:57]} 30. a4 {[%emt 0:02:10]} b5 {[%emt 0:03:55]} 31. Rc1 {[%emt 0:04:18]} bxa4 {[%emt 0:06:56]} 32. Bxa6 {[%emt 0:00:15]} Rb8 {[%emt 0:02:47]} 33. Rc6 {[%emt 0:07:28]} Nf5 {[%emt 0:05:36]} 34. b5 {[%emt 0:03:42]} Nfd4 {[%emt 0:00:34]} 35. Rc4 {[%emt 0:00:22]} Nxb5 {[%emt 0:04:09]} 36. Rxa4 {[%emt 0:01:31]} Nbc7 {[%emt 0:01:00]} 37. Ba3+ {[%emt 0:01:18]} Kg8 {[%emt 0:00:05]} 38. Bc4 {[%emt 0:00:13]} Rb1+ {[%emt 0:02:09]} 39. Kg2 {[%emt 0:00:28]} Ra1 {[%emt 0:00:25]} 40. Ra7 {[%emt 0:00:29]} Kh7 {[%emt 0:01:01]} 41. h4 {[%emt 0:30:40]} Kg8 {[%emt 0:03:32]} 42. f4 {[%emt 0:00:00]} Rd1 {[%emt 0:02:44]} 43. Rb7 {[%emt 0:00:00]} Rd4 {[%emt 0:01:41]} 44. Bb3 {[%emt 0:00:00]} Rd2+ {[%emt 0:01:23]} 45. Kh3 {[%emt 0:00:00]} Rd3 {[%emt 0:00:43]} 46. Kg2 {[%emt 0:00:00]} Rd2+ {[%emt 0:00:20]} 47. Kh3 {[%emt 0:00:00]} 1/2-1/2

[Event "FIDE World Junior U20-ch Girls 2025"]
[Site "Petrovac"]
[Date "2025.03.02"]
[Round "6.27"]
[White "Mihelic, Vesna"]
[Black "Avetisyan, Ani"]
[Result "1/2-1/2"]
[Annotator "NA"]
[ECO "B22"]
[WhiteElo "2115"]
[BlackElo "1904"]
[PlyCount "64"]
[EventDate "2025.02.23"]
[EventType "swiss"]
[EventCountry "MNE"]
[SourceTitle "playchess.com"]
[Source "ChessBase"]
[SourceQuality "1"]
[TimeControl "40/5400+30:1800+30"]

1. e4 {[%emt 0:00:02]} c5 {[%emt 0:00:06]} 2. Nf3 {[%emt 0:00:06]} e6 {[%emt 0:00:06]} 3. c3 {[%emt 0:00:10]} d5 {[%emt 0:00:19]} 4. exd5 {[%emt 0:00:08]} Qxd5 {[%emt 0:00:05]} 5. d4 {[%emt 0:00:23]} Nf6 {[%emt 0:02:35]} 6. Be2 {[%emt 0:00:34]} Nc6 {[%emt 0:06:39]} 7. O-O {[%emt 0:02:10]} cxd4 {[%emt 0:02:25]} 8. cxd4 {[%emt 0:00:26]} Be7 {[%emt 0:00:37]} 9. Nc3 {[%emt 0:02:50]} Qd8 {[%emt 0:01:14]} 10. Bf4 {[%emt 0:13:42]} O-O {[%emt 0:01:14]} 11. Rc1 {[%emt 0:03:05]} Nd5 {[%emt 0:08:04]} 12. Bg3 {[%emt 0:01:37]} Bd6 {[%emt 0:14:17]} 13. Ne5 {[%emt 0:06:57]} Nxc3 {[%emt 0:03:41]} 14. Rxc3 {[%emt 0:05:33]} Nb4 {[%emt 0:05:18]} 15. Bc4 {[%emt 0:07:12]} f6 {[%emt 0:09:07]} 16. Ng4 {[%emt 0:12:28]} Bxg3 {[%emt 0:01:30]} 17. hxg3 {[%emt 0:06:44]} Nd5 {[%emt 0:03:01]} 18. Rc1 {[%emt 0:01:36]} Qd6 {[%emt 0:03:46]} 19. Qb3 {[%emt 0:01:52]} Rd8 {[%emt 0:01:40]} 20. Rfd1 {[%emt 0:01:50]} Nb6 {[%emt 0:03:46]} 21. Be2 {[%emt 0:04:41]} Bd7 {[%emt 0:00:44]} 22. Bb5 {[%emt 0:03:01]} Bxb5 {[%emt 0:02:47]} 23. Qxb5 {[%emt 0:00:02]} Rac8 {[%emt 0:00:09]} 24. Ne3 {[%emt 0:03:01]} Rc7 {[%emt 0:06:22]} 25. Rxc7 {[%emt 0:02:43]} Qxc7 {[%emt 0:00:04]} 26. d5 {[%emt 0:00:21]} exd5 {[%emt 0:00:43]} 27. Nxd5 {[%emt 0:02:06]} Nxd5 {[%emt 0:09:21]} 28. Rxd5 {[%emt 0:00:11]} a6 {[%emt 0:04:06]} 29. Rxd8+ {[%emt 0:11:32]} Qxd8 {[%emt 0:00:08]} 30. Qb3+ {[%emt 0:01:56]} Kf8 {[%emt 0:00:38]} 31. Qxb7 {[%emt 0:00:31]} Qd1+ {[%emt 0:00:09]} 32. Kh2 {[%emt 0:00:08]} Qh5+ {[%emt 0:00:13]} 1/2-1/2

[Event "FIDE World Junior U20-ch Girls 2025"]
[Site "Petrovac"]
[Date "2025.03.02"]
[Round "6.28"]
[White "Sulyok, Eszter"]
[Black "Guo, Hanxi"]
[Result "1/2-1/2"]
[Annotator "NA"]
[ECO "A05"]
[WhiteElo "2109"]
[BlackElo "1854"]
[PlyCount "97"]
[EventDate "2025.02.23"]
[EventType "swiss"]
[EventCountry "MNE"]
[SourceTitle "playchess.com"]
[Source "ChessBase"]
[SourceQuality "1"]
[TimeControl "40/5400+30:1800+30"]

1. Nf3 {[%emt 0:00:06]} Nf6 {[%emt 0:00:16]} 2. g3 {[%emt 0:00:11]} e6 {[%emt 0:00:08]} 3. Bg2 {[%emt 0:00:05]} d5 {[%emt 0:00:12]} 4. O-O {[%emt 0:00:10]} Be7 {[%emt 0:00:39]} 5. d3 {[%emt 0:00:18]} c5 {[%emt 0:02:56]} 6. Nbd2 {[%emt 0:00:28]} Nc6 {[%emt 0:03:23]} 7. e4 {[%emt 0:00:40]} d4 {[%emt 0:01:32]} 8. a4 {[%emt 0:03:58]} e5 {[%emt 0:09:31]} 9. Nc4 {[%emt 0:01:22]} Qc7 {[%emt 0:02:47]} 10. Nh4 {[%emt 0:05:04]} Be6 {[%emt 0:08:19]} 11. Nf5 {[%emt 0:02:25]} O-O {[%emt 0:06:31]} 12. f4 {[%emt 0:11:57]} Bxf5 {[%emt 0:04:55]} 13. exf5 {[%emt 0:00:09]} Nd7 {[%emt 0:03:43]} 14. g4 {[%emt 0:04:55]} f6 {[%emt 0:07:01]} 15. g5 {[%emt 0:11:17]} g6 {[%emt 0:08:38]} 16. fxg6 {[%emt 0:09:42]} hxg6 {[%emt 0:00:31]} 17. f5 {[%emt 0:00:00]} fxg5 {[%emt 0:01:12]} 18. fxg6 {[%emt 0:00:00]} Kg7 {[%emt 0:00:41]} 19. Rf7+ {[%emt 0:00:24]} Rxf7 {[%emt 0:00:53]} 20. gxf7 {[%emt 0:00:13]} Rh8 {[%emt 0:01:39]} 21. h3 {[%emt 0:07:54]} Rh4 {[%emt 0:01:56]} 22. Qf3 {[%emt 0:09:22]} e4 {[%emt 0:14:04]} 23. dxe4 {[%emt 0:00:26]} g4 {[%emt 0:00:46]} 24. hxg4 {[%emt 0:06:53]} Qh2+ {[%emt 0:00:37]} 25. Kf1 {[%emt 0:01:14]} Nde5 {[%emt 0:01:35]} 26. Nxe5 {[%emt 0:03:12]} Nxe5 {[%emt 0:00:25]} 27. Qf4 {[%emt 0:05:03]} Qxf4+ {[%emt 0:03:12]} 28. Bxf4 {[%emt 0:00:07]} Bd6 {[%emt 0:10:04]} 29. Ra3 {[%emt 0:08:50]} Rxg4 {[%emt 0:02:19]} 30. Bxe5+ {[%emt 0:05:51]} Bxe5 {[%emt 0:00:02]} 31. Rf3 {[%emt 0:00:23]} Rf4 {[%emt 0:00:42]} 32. Rxf4 {[%emt 0:00:42]} Bxf4 {[%emt 0:00:04]} 33. Ke2 {[%emt 0:00:05]} Kxf7 {[%emt 0:00:09]} 34. Kd3 {[%emt 0:00:06]} Ke6 {[%emt 0:00:57]} 35. Kc4 {[%emt 0:01:44]} Be3 {[%emt 0:01:31]} 36. Bf1 {[%emt 0:02:17]} Bc1 {[%emt 0:02:13]} 37. b4 {[%emt 0:00:44]} cxb4 {[%emt 0:00:44]} 38. Kxd4 {[%emt 0:00:09]} Bb2+ {[%emt 0:01:19]} 39. Kc5 {[%emt 0:00:16]} Ke5 {[%emt 0:01:05]} 40. Kxb4 {[%emt 0:00:50]} Kxe4 {[%emt 0:00:11]} 41. Bg2+ {[%emt 0:30:11]} Ke5 {[%emt 0:30:06]} 42. Bxb7 {[%emt 0:00:54]} Kd6 {[%emt 0:00:15]} 43. c4 {[%emt 0:00:40]} Bd4 {[%emt 0:00:09]} 44. Kb5 {[%emt 0:00:36]} Bc5 {[%emt 0:00:10]} 45. Bg2 {[%emt 0:00:00]} Bd4 {[%emt 0:00:00]} 46. Be4 {[%emt 0:00:00]} Bc5 {[%emt 0:00:00]} 47. Bg2 {[%emt 0:00:00]} Bd4 {[%emt 0:00:00]} 48. Be4 {[%emt 0:00:00]} Bc5 {[%emt 0:00:00]} 49. Bg2 {[%emt 0:00:00]} 1/2-1/2

[Event "FIDE World Junior U20-ch Girls 2025"]
[Site "Petrovac"]
[Date "2025.03.02"]
[Round "6.29"]
[White "Seyilhanova, Gulmira"]
[Black "Karacsonyi, Kata"]
[Result "1/2-1/2"]
[Annotator "ChessBase"]
[ECO "A08"]
[WhiteElo "1939"]
[BlackElo "2191"]
[PlyCount "134"]
[EventDate "2025.02.23"]
[EventType "swiss"]
[EventCountry "MNE"]
[SourceTitle "playchess.com"]
[Source "ChessBase"]
[SourceQuality "1"]
[TimeControl "40/5400+30:1800+30"]

1. Nf3 {[%emt 0:00:03]} Nf6 {[%emt 0:00:09]} 2. g3 {[%emt 0:00:18]} e6 {[%emt 0:00:11]} 3. Bg2 {[%emt 0:00:07]} d5 {[%emt 0:00:06]} 4. O-O {[%emt 0:00:13]} c5 {[%emt 0:00:09]} 5. d3 {[%emt 0:00:17]} Nc6 {[%emt 0:00:13]} 6. Nbd2 {[%emt 0:00:09]} Be7 {[%emt 0:00:14]} 7. e4 {[%emt 0:00:30]} b6 {[%emt 0:00:18]} 8. Re1 {[%emt 0:01:28]} Bb7 {[%emt 0:00:43]} 9. c3 {[%emt 0:01:55]} h6 {[%emt 0:00:21]} 10. Qe2 {[%emt 0:01:38]} Qc7 {[%emt 0:06:05]} 11. Nf1 {[%emt 0:03:47]} dxe4 {[%emt 0:07:33]} 12. dxe4 {[%emt 0:00:08]} a5 {[%emt 0:07:31]} 13. Qb5 {[%emt 0:19:46]} O-O {[%emt 0:05:18]} 14. Bf4 {[%emt 0:06:15]} e5 {[%emt 0:01:58]} 15. Bd2 {[%emt 0:00:24]} Ba6 {[%emt 0:14:47]} 16. Qa4 {[%emt 0:00:20]} Bd3 {[%emt 0:03:08]} 17. Nh4 {[%emt 0:03:19]} Rfd8 {[%emt 0:05:47]} 18. Ne3 {[%emt 0:19:35]} b5 {[%emt 0:02:49]} 19. Qd1 {[%emt 0:02:19]} Bxe4 {[%emt 0:11:16]} 20. Nef5 {[%emt 0:09:06]} Bxg2 {[%emt 0:03:17]} 21. Kxg2 {[%emt 0:00:30]} Qd7 {[%emt 0:04:47]} 22. Be3 {[%emt 0:03:01]} Bf8 {[%emt 0:02:41]} 23. Qxd7 {[%emt 0:09:04]} Rxd7 {[%emt 0:00:21]} 24. Rad1 {[%emt 0:00:17]} Rad8 {[%emt 0:00:31]} 25. Rxd7 {[%emt 0:00:11]} Rxd7 {[%emt 0:00:08]} 26. Nf3 {[%emt 0:00:22]} e4 {[%emt 0:03:44]} 27. Nd2 {[%emt 0:02:01]} Rd5 {[%emt 0:00:25]} 28. Nh4 {[%emt 0:16:05]} g5 {[%emt 0:00:12]} 29. a4 {[%emt 0:00:48]} gxh4 {[%emt 0:03:51]} 30. axb5 {[%emt 0:00:09]} Ne5 {[%emt 0:02:38]} 31. Ra1 {[%emt 0:01:13]} Neg4 {[%emt 0:06:41]} 32. Nc4 {[%emt 0:00:30]} Nxe3+ {[%emt 0:03:53]} 33. fxe3 {[%emt 0:00:09]} hxg3 {[%emt 0:01:26]} 34. hxg3 {[%emt 0:00:02]} Rd7 {[%emt 0:01:27]} 35. Rxa5 {[%emt 0:00:55]} Nd5 {[%emt 0:00:37]} 36. Ra8 {[%emt 0:00:31]} Kg7 {[%emt 0:01:51]} 37. Re8 {[%emt 0:00:58]} Rb7 {[%emt 0:00:33]} 38. Rd8 {[%emt 0:00:24]} Nb6 {[%emt 0:01:13]} 39. Na5 {[%emt 0:00:35]} Ra7 {[%emt 0:00:24]} 40. Nc6 {[%emt 0:00:19]} Rb7 {[%emt 0:00:28]} 41. b3 {[%emt 0:11:10]} c4 {[%emt 0:06:48]} 42. Na5 {[%emt 0:00:09]} Rc7 {[%emt 0:03:48]} 43. b4 {[%emt 0:05:27]} Rc8 {[%emt 0:07:44]} 44. Rxc8 {[%emt 0:02:03]} Nxc8 {[%emt 0:00:05]} 45. Nxc4 {[%emt 0:00:04]} Nd6 {[%emt 0:01:13]} 46. Na3 {[%emt 0:00:09]} Nb7 {[%emt 0:02:58]} 47. Nc2 {[%emt 0:01:49]} Kf6 {[%emt 0:02:37]} 48. c4 {[%emt 0:02:08]} Ke5 {[%emt 0:00:53]} 49. c5 {[%emt 0:00:17]} Kd5 {[%emt 0:02:12]} 50. Nd4 {[%emt 0:01:42]} Bg7 {[%emt 0:01:07]} 51. Nf5 {[%emt 0:01:29]} Bc3 {[%emt 0:01:38]} 52. Ne7+ {[%emt 0:01:23]} Ke6 {[%emt 0:00:08]} 53. Nc6 {[%emt 0:00:19]} Kd7 {[%emt 0:03:02]} 54. Nb8+ {[%emt 0:00:24]} Kc8 {[%emt 0:00:33]} 55. Na6 {[%emt 0:00:20]} Bxb4 {[%emt 0:02:50]} 56. Nxb4 {[%emt 0:00:30]} Nxc5 {[%emt 0:00:02]} 57. g4 {[%emt 0:00:20]} Kb7 {[%emt 0:00:36]} 58. Nd5 {[%emt 0:00:08]} Ne6 {[%emt 0:00:52]} 59. Kg3 {[%emt 0:00:41]} Ka7 {[%emt 0:00:12]} 60. Kh4 {[%emt 0:00:42]} Ng7 {[%emt 0:00:23]} 61. g5 {[%emt 0:06:07]} Nf5+ {[%emt 0:00:46]} 62. Kg4 {[%emt 0:00:18]} Nxe3+ {[%emt 0:00:19]} 63. Nxe3 {[%emt 0:00:22]} hxg5 {[%emt 0:00:05]} 64. Nc4 {[%emt 0:00:19]} f5+ {[%emt 0:00:25]} 65. Kxf5 {[%emt 0:00:52]} e3 {[%emt 0:00:05]} 66. Nxe3 {[%emt 0:00:05]} Kb6 {[%emt 0:00:03]} 67. Kxg5 {[%emt 0:00:11]} Kxb5 {[%emt 0:00:03]} 1/2-1/2